Cogmind - Beta 10 @@@ ROGUE MODE // 2020.09.18 @ 21:37:51 Player: muxecoid Result: Destroyed by Lightning with EMDS Performance ------------- Evolutions (6) 3000 Regions Visited (32) 6400 Robots Destroyed (321) 1605 Value Destroyed (13709) 13709 Prototype IDs (44) 880 Alien Tech Used (1) 200 Bonus (12552) 12552 TOTAL SCORE: 38346 Bonus ------- High Alert Combat Kills 670 Follower Combat Kills 4204 Network Hubs Disabled 600 Met Data Miner 300 Met Imprinter 300 Destroyed Z-Imprinter 1000 Met Warlord at Base 500 MAIN.C Attacked Warlord 500 Warlord Defense Kill 4088 A7 Reached Mainframe 300 Met R17 at Cetus 500 Friendly Fire -410 Cogmind --------- Core Integrity 0/1150 Matter 300/300 Energy 99/100 System Corruption 38% Temperature Cool (9) Movement Core (50) Location -4/Hub_04(d) Parts ------- > --- POWER (1) -------- (None) > --- PROPULSION (3) --- (None) > --- UTILITY (14) ----- Assembled Suspension Frame Experimental Signal Interpreter > --- WEAPON (2) ------- (None) > --- INVENTORY (4) ---- Vortex Chain Reactor Hacking Suite Improved KE Penetrator Peak State ------------ > --- POWER ------------ Quantum Reactor > --- PROPULSION ------- Medium Treads Centrium Heavy Treads > --- UTILITY ---------- Assembled Nanovents Assembled Nanovents Assembled Nanovents Assembled Biocell Array Assembled Suspension Frame Assembled Suspension Frame Experimental Signal Interpreter Surveybot 24 Chip Assembled Combat Suite Advanced Armor Integrity Analyzer Centrium Medium Armor Plating Assembled Alloy Armor GOLEM Unit > --- WEAPON ----------- Improved KE Penetrator Improved KE Penetrator > --- INVENTORY -------- Damper Plating [Rating: 165] Favorites ----------- Power Improved Deuterium Engine Engine Improved Deuterium Engine Power Core Micro Fission Core Reactor Light Antimatter Reactor Propulsion Wheel Treads Light Treads Leg Enhanced Biometal Leg Wheel Wheel Hover Unit Zionite Glidesys I Utility Large Storage Unit Device Experimental Sensor Array Storage Large Storage Unit Processor Experimental Targeting Computer Hackware Improved System Shield Protection Damper Plating Weapon KE Penetrator Energy Gun Tesla Rifle Energy Cannon Heavy Phase Cannon Ballistic Gun KE Penetrator Launcher Heavy Shock Bomb Launcher Slashing Weapon Makeshift Sword Piercing Weapon Makeshift Spear Special Melee Weapon Advanced Datajack Build | -11 -10 -10 -9 -9 -9 -8 -8 -7 -7 -7 -7 -7 -7 -6 -6 -6 -6 -6 -6 -5 -5 -5 -5 -5 -5 -5 -4 -4 -4 -4 -4 -4 ------- Run | Scr Mat Min Mat Min Exi Min Mat Fac Was Fac Low Low Dat Pro Fac Low Low Zio Dee Pro Fac Was Fac Upp Upp War Pro Fac Ext Cet Arc Hub Slots Evolved 12 | . . . 2 . . . 2 2 . . . . . . 2 . . . . . 2 . . . . . . 2 . . . . Power . | . . . . . . . . . . . . . . . . . . . . . . . . . . . . . . . . . Propulsion . | . . . . . . . . . . . . . . . . . . . . . . . . . . . . . . . . . Utility 12 | . . . 2 . . . 2 2 . . . . . . 2 . . . . . 2 . . . . . . 2 . . . . Weapon . | . . . . . . . . . . . . . . . . . . . . . . . . . . . . . . . . . Parts Attached 461 | 6 1 9 10 11 2 11 7 21 8 2 7 . . 7 48 8 18 3 42 6 46 10 7 . 8 31 4 30 54 16 9 19 Power 26 | 1 . 1 1 . . 1 . 2 2 . 1 . . . 6 1 1 . . 1 2 . . . . 1 . . 3 1 . 1 Engine 15 | 1 . 1 1 . . 1 . 1 2 . . . . . 5 1 1 . . 1 . . . . . . . . . . . . Core 4 | . . . . . . . . 1 . . 1 . . . 1 . . . . . 1 . . . . . . . . . . . Reactor 7 | . . . . . . . . . . . . . . . . . . . . . 1 . . . . 1 . . 3 1 . 1 Propulsion 66 | 2 . 5 3 1 . 4 2 4 . . . . . 2 9 1 1 . 6 . 10 2 2 . . 5 . . 4 1 1 1 Treads 24 | . . 1 2 1 . 3 2 1 . . . . . . . 1 . . 1 . . 1 2 . . 2 . . 4 1 1 1 Leg 14 | . . . . . . 1 . . . . . . . . 4 . . . 2 . 4 . . . . 3 . . . . . . Wheel 27 | 2 . 4 1 . . . . 3 . . . . . 2 5 . 1 . 2 . 6 1 . . . . . . . . . . Hover 1 | . . . . . . . . . . . . . . . . . . . 1 . . . . . . . . . . . . . Flight . | . . . . . . . . . . . . . . . . . . . . . . . . . . . . . . . . . Utility 183 | 1 1 . 2 1 2 1 3 6 2 . 2 . . . 14 2 5 3 19 4 19 3 1 . 4 6 4 25 32 5 6 10 Device 78 | . . . . . . 1 1 1 1 . 1 . . . 4 2 1 1 5 2 7 2 . . 2 2 4 14 19 1 1 6 Storage 44 | 1 1 . . . 2 . 2 . 1 . . . . . 2 . . 1 6 . 3 1 . . 2 2 . 9 5 1 5 . Processor 10 | . . . 1 . . . . 2 . . 1 . . . 2 . . . . . 1 . 1 . . 1 . . 1 . . . Hackware 6 | . . . . . . . . 1 . . . . . . 2 . . . . . 2 . . . . . . 1 . . . . Protection 45 | . . . 1 1 . . . 2 . . . . . . 4 . 4 1 8 2 6 . . . . 1 . 1 7 3 . 4 Artifact . | . . . . . . . . . . . . . . . . . . . . . . . . . . . . . . . . . Weapon 186 | 2 . 3 4 9 . 5 2 9 4 2 4 . . 5 19 4 11 . 17 1 15 5 4 . 4 19 . 5 15 9 2 7 Energy Gun 30 | . . . 2 2 . 3 2 1 . . . . . 1 3 . . . 4 1 4 1 . . . . . . . 4 . 2 Energy Cannon 53 | . . . 1 3 . 1 . 2 1 . . . . 2 7 1 2 . 8 . 4 1 2 . 1 7 . 2 6 1 . 1 Ballistic Gun 46 | 2 . 2 . 1 . . . 3 1 1 2 . . 1 4 . 3 . 1 . 4 2 2 . . 3 . 2 5 3 2 2 Ballistic Cannon . | . . . . . . . . . . . . . . . . . . . . . . . . . . . . . . . . . Launcher 44 | . . 1 1 3 . 1 . 2 . 1 2 . . 1 3 2 4 . 3 . 1 1 . . 3 8 . . 4 1 . 2 Special Weapon . | . . . . . . . . . . . . . . . . . . . . . . . . . . . . . . . . . Impact Weapon . | . . . . . . . . . . . . . . . . . . . . . . . . . . . . . . . . . Slashing Weapon 7 | . . . . . . . . . . . . . . . 1 1 2 . 1 . 1 . . . . 1 . . . . . . Piercing Weapon 4 | . . . . . . . . 1 2 . . . . . . . . . . . 1 . . . . . . . . . . . Special Melee Weapon 2 | . . . . . . . . . . . . . . . 1 . . . . . . . . . . . . 1 . . . . Unidentified Prototypes 28 | . . . . . . . . 1 . . . . . . 3 . 1 1 11 . 2 . . . . 4 1 . . 4 . . Parts Lost 99 | . . 2 2 4 . 10 2 13 1 . . . . . 17 2 5 . 9 . 11 . . . . . . 2 4 . . 15 Power 13 | . . . . . . 1 . 1 1 . . . . . 6 . 1 . . . 1 . . . . . . . . . . 2 Propulsion 24 | . . 1 2 1 . 4 . 4 . . . . . . 4 1 . . 1 . 3 . . . . . . . . . . 3 Utility 29 | . . . . 1 . 1 . 3 . . . . . . 2 . 2 . 5 . 4 . . . . . . 2 3 . . 6 Weapon 33 | . . 1 . 2 . 4 2 5 . . . . . . 5 1 2 . 3 . 3 . . . . . . . 1 . . 4 Highest Loss Streak 12 | . . 1 1 2 . 6 1 9 1 . . . . . 7 2 2 . 6 . 3 . . . . . . 2 3 . . 12 Average Slot Usage (%) 95 | . 94 99 96 94 100 93 96 93 96 100 99 99 84 100 99 98 98 91 88 86 92 99 99 94 94 92 88 89 93 94 92 92 Engine 3 | . 14 14 11 11 11 11 9 5 4 7 4 . . . 4 6 6 6 6 6 3 . . . . . . . . . . . Core 1 | . . . . . . . . 1 . . 2 7 7 7 1 . . . . . 1 5 5 5 5 4 . . . . . . Reactor 1 | . . . . . . . . . . . . . . . . . . . . . . . . . . . 5 5 5 4 5 4 Treads 5 | . . 6 11 21 22 17 11 9 . . . . . . . 5 5 . 1 . . . . 11 11 10 . . 6 10 10 9 Leg 2 | . . . . . . 1 6 . . . . . . . 3 . . . . . 3 . . . . . 16 15 8 . . . Wheel 6 | . 28 21 8 . . . . 4 15 15 15 15 15 15 9 6 6 12 10 12 8 15 14 . . . . . . . . . Device 6 | . . . . . . 2 14 11 8 7 7 7 7 7 4 6 5 8 2 5 6 5 5 5 3 6 4 11 11 10 16 18 Storage 29 | . 22 28 22 22 22 22 36 30 36 38 30 30 30 30 33 33 26 25 23 25 27 32 33 33 34 35 33 28 29 34 26 29 Processor 15 | . . . 11 11 11 8 . 5 15 15 23 23 23 23 24 26 25 25 19 18 16 16 16 16 16 13 11 10 13 15 15 14 Hackware 2 | . . . . . . . . 4 . . . . . . 2 . . . . . 4 11 11 11 11 6 . 4 1 . . . Protection 3 | . . . 8 6 11 8 . 3 . . . . . . . . 6 2 10 6 6 . . . . . 5 5 7 10 9 5 Energy Gun 1 | . . . 11 2 . 6 18 4 . . . . . 7 3 . . . 1 . 2 4 1 . . . . . . 5 . 1 Energy Cannon 3 | . . . 7 7 . 1 . 2 6 4 . . . 4 4 . 5 6 7 5 . . 4 5 2 2 5 3 4 1 . 1 Ballistic Gun 5 | . 28 27 2 8 11 7 . 6 6 8 13 14 . 2 3 . 2 6 1 6 6 5 3 5 4 . 5 5 3 2 8 6 Launcher 1 | . . . 1 4 11 6 . . . . 1 . . . . 4 1 . . . . . . . 3 6 . . 1 . . . Naked Turns . | . . . . . . . . . . . . . . . . . . . . . . . . . . . . . . . . . Heaviest Build 201 | 11 27 28 41 41 48 51 78 84 85 79 81 76 70 80 112 107 114 92 103 87 118 107 109 109 112 171 171 201 200 176 176 198 Greatest Support 128 | 26 26 26 40 40 40 40 40 40 20 20 20 20 20 20 40 32 44 44 70 44 60 36 93 93 93 98 90 90 98 103 128 128 Greatest Overweight (x) 10 | . 1 2 3 1 1 2 3 8 4 3 4 3 3 3 10 6 6 2 5 1 4 3 6 1 1 2 1 2 7 1 1 1 Average Overweight (x) 2 | . . 1 . . . 1 2 2 3 3 3 3 3 3 3 5 4 1 1 1 2 2 2 1 1 1 1 1 1 1 . . Largest Inventory Capacity 40 | 6 12 12 12 12 16 16 28 28 28 28 28 28 28 28 38 34 34 30 28 26 38 36 36 36 36 36 36 40 40 40 40 40 Average Capacity 29 | 5 9 12 12 12 13 16 27 28 28 28 28 28 28 28 33 34 28 28 21 26 32 35 36 36 36 36 36 35 38 40 33 39 Most Carried 40 | 4 6 12 12 12 14 14 15 16 20 27 28 28 28 28 34 33 32 28 28 26 32 36 36 36 36 36 36 36 40 40 40 40 Average Carried 27 | 2 5 6 11 11 12 12 11 13 18 23 26 27 28 27 31 32 27 27 19 26 26 35 35 35 36 35 35 35 35 39 28 38 Final Capacity 40 | 6 12 12 12 12 16 16 28 28 28 28 28 28 28 28 34 34 28 28 26 26 32 36 36 36 36 36 36 36 40 40 40 40 Final Carried 40 | 4 5 12 12 12 14 13 12 16 19 26 28 28 28 28 33 32 26 28 26 26 32 36 36 36 36 36 36 35 40 40 40 40 Class Distribution -------------------- 35% | Hauler-Mutant 33% | Scavenger-Mutant 9% | Mutant 7% | Scavenger-Skirmisher 7% | Hauler-Skirmisher 6% | Hauler-Assassin Dominant Class ---------------- Mutant | -10/Materials Mutant | -10/Mines Mutant | -9/Materials Mutant | -9/Mines Scavenger-Mutant | -9/Exiles Scavenger-Mutant | -8/Mines Scavenger-Mutant | -8/Materials Scavenger-Mutant | -7/Factory Hauler-Mutant | -7/Waste Hauler-Mutant | -7/Factory Hauler-Skirmisher | -7/Lower Caves Scavenger-Skirmisher | -7/Lower Caves Hauler-Mutant | -7/Data Miner Scavenger-Skirmisher | -6/Proximity Caves Hauler-Skirmisher | -6/Factory Hauler-Assassin | -6/Lower Caves Hauler-Assassin | -6/Lower Caves Hauler-Mutant | -6/Zion Hauler-Mutant | -6/Deep Caves Hauler-Mutant | -5/Proximity Caves Hauler-Mutant | -5/Factory Scavenger-Mutant | -5/Waste Scavenger-Mutant | -5/Factory Scavenger-Mutant | -5/Upper Caves Scavenger-Mutant | -5/Upper Caves Hauler-Mutant | -5/Warlord Scavenger-Mutant | -4/Proximity Caves Scavenger-Mutant | -4/Factory Hauler-Mutant | -4/Extension Hauler-Mutant | -4/Cetus Hauler-Mutant | -4/Archives Hauler-Mutant | -4/Hub_04(d) Resources | -11 -10 -10 -9 -9 -9 -8 -8 -7 -7 -7 -7 -7 -7 -6 -6 -6 -6 -6 -6 -5 -5 -5 -5 -5 -5 -5 -4 -4 -4 -4 -4 -4 ----------- Run | Scr Mat Min Mat Min Exi Min Mat Fac Was Fac Low Low Dat Pro Fac Low Low Zio Dee Pro Fac Was Fac Upp Upp War Pro Fac Ext Cet Arc Hub Matter Collected 9103 | 255 45 310 145 272 . 229 60 391 136 69 210 77 . 418 714 152 604 44 470 100 636 246 244 112 128 549 125 537 961 269 154 441 Remotely . | . . . . . . . . . . . . . . . . . . . . . . . . . . . . . . . . . Salvage Created 14957 | . 69 196 460 617 . 497 347 604 245 120 51 49 . 60 1514 265 310 . 708 10 1014 590 125 25 327 2224 90 706 1543 363 180 1648 Parts 629 | . 8 8 27 44 . 23 18 35 . 5 6 3 . 5 46 8 6 . 17 . 59 7 7 2 12 71 3 34 76 15 6 78 Haulers Intercepted 2 | . . . 1 . . . . . . . . . . . 1 . . . . . . . . . . . . . . . . . Recyclers Shooed 5 | . . . . . . 1 . 3 . . . . . . 1 . . . . . . . . . . . . . . . . . Parts Field Recycled . | . . . . . . . . . . . . . . . . . . . . . . . . . . . . . . . . . Retrieved Matter . | . . . . . . . . . . . . . . . . . . . . . . . . . . . . . . . . . Parts Self-Destructed 184 | . . . . . . . . . . . 10 14 . 21 . 6 2 . . . . . . 13 42 73 3 . . . . . Prevented 52 | . . . . . . . . . . . . . . 1 . . 4 . . . . . . . 9 38 . . . . . . Kills | -11 -10 -10 -9 -9 -9 -8 -8 -7 -7 -7 -7 -7 -7 -6 -6 -6 -6 -6 -6 -5 -5 -5 -5 -5 -5 -5 -4 -4 -4 -4 -4 -4 ------- Run | Scr Mat Min Mat Min Exi Min Mat Fac Was Fac Low Low Dat Pro Fac Low Low Zio Dee Pro Fac Was Fac Upp Upp War Pro Fac Ext Cet Arc Hub Combat Hostiles Destroyed 258 | . 1 14 9 23 . 18 7 10 1 4 5 1 . 4 20 7 15 . 10 1 9 . 2 1 5 36 1 12 13 4 1 24 Melee 2 | . . . . . . . . . . . . . . . 1 1 . . . . . . . . . . . . . . . . Guns 79 | . 1 12 5 4 . 4 7 6 1 . 1 1 . . 7 . 1 . . 1 7 . . . . . . 8 3 1 . 9 Cannons 38 | . . . 1 4 . 4 . 3 . . . . . 1 7 1 1 . 1 . 1 . 2 1 1 2 1 2 2 . 1 2 AOE 106 | . . 2 3 15 . 10 . 1 . 4 4 . . 3 3 5 13 . 7 . . . . . 3 23 . . 1 . . 9 Classes Destroyed 24 | . 3 3 1 4 . . 1 2 1 1 . . . . . . 1 . 2 1 . . . . . 3 . . 1 . . . Worker 17 | . . . . 1 . 1 . 2 . . . . . . . . . . . . 2 . . . . . . 1 4 . . 6 Builder 14 | . . . . 1 . . . 2 . . . . . . . . . . . . . . . . . . . . 6 . . 5 Tunneler 4 | . . . . 1 . 1 . . . . . . . . . . . . . . . . . . . . . . 2 . . . Hauler 2 | . . . 1 . . . . . . . . . . . 1 . . . . . . . . . . . . . . . . . Recycler 9 | . . . . . . . . . . 1 . . . . 2 . . . . . 3 . . . . . . . 2 . . 1 Operator 7 | . 1 . . . . . . 2 . . . . . . 1 . . . . . . . . . . . . . . . 3 . Watcher 7 | . 1 . . . . . . 1 . . . . . . . . . . . . 1 . . . . . . . 2 1 . 1 Swarmer 50 | . . 5 . 7 . 6 . . . 4 5 . . 3 2 1 1 . . . . . . 1 . 3 . 4 . . . 8 Saboteur 4 | . . . . . . . . . . . . . . . . . 1 . . . . . . . . 3 . . . . . . Grunt 92 | . 1 . 7 9 . 12 4 5 . . . 1 . . 9 2 4 . . . . . . . 3 21 . 2 4 . . 8 Brawler 11 | . . . . 3 . . . 1 . . . . . . . 2 3 . . . . . . . . 1 . . . . . 1 Duelist 7 | . . . . . . . 1 . . . . . . . . 1 3 . . . . . . . 2 . . . . . . . Protector 1 | . . . . . . . . . . . . . . . . . . . . . . . . . . 1 . . . . . . Sentry 27 | . . 1 2 . . . 2 1 . . . . . . 4 1 1 . . . 2 . 1 . . . 1 2 3 . 1 5 Demolisher 2 | . . . . . . . . . . . . . . . . . . . . 1 . . . . . 1 . . . . . . Specialist 1 | . . . . . . . . . . . . . . . . . . . . . . . . . . 1 . . . . . . Hunter 13 | . . . . . . . . 1 . . . . . . 2 . 2 . . . . . . . . . . 2 4 . . 2 Programmer 18 | . . . . . . . . 2 . . . . . 1 3 . . . . . 7 . 1 . . 2 . 2 . . . . Behemoth 2 | . . . . . . . . . . . . . . . . . . . . . . . . . . . . . 2 . . . Compactor 1 | . . . . . . . . . 1 . . . . . . . . . . . . . . . . . . . . . . . Cetus Guard 4 | . . . . . . . . . . . . . . . . . . . . . . . . . . . . . . 4 . . Executioner 3 | . . . . . . . . . . . . . . . . . . . . . . . . . . 3 . . . . . . Z-Technician 2 | . . . . . . . . . . . . . . . . . . . 2 . . . . . . . . . . . . . Z-Light 7 | . . . . . . . . . . . . . . . . . . . 7 . . . . . . . . . . . . . Assembled 13 | . . 8 . 4 . . . . . . . . . . . . . . 1 . . . . . . . . . . . . . Golem 2 | . . . . . . . . . . . . . . . . . . . 2 . . . . . . . . . . . . . Thug 1 | . . . . . . . . . . . . . . . 1 . . . . . . . . . . . . . . . . . Best Kill Streak 14 | . 1 4 4 5 . 9 3 7 1 5 3 1 . 3 7 4 13 . 6 1 4 . 1 1 3 14 1 5 10 4 2 12 Combat Bots Only 14 | . 1 4 4 4 . 7 3 6 1 4 3 1 . 3 5 4 13 . 6 1 2 . 1 1 3 14 1 4 3 3 1 5 Max Kills in Single Turn 9 | . 1 1 2 4 . 3 1 2 1 3 2 1 . 2 2 2 3 . 4 1 2 . 1 1 1 9 1 2 2 1 1 8 Gunslinging 1 | . . . . . . . . . . . . . . . . . . . . . . . . . . . . 1 . . . . Exploded 9 | . . 1 2 4 . 3 . 1 . 3 2 . . 2 2 2 3 . 4 . . . . . 1 9 . . 1 . . 5 Melee 1 | . . . . . . . . . . . . . . . 1 1 . . . . . . . . . . . . . . . . Uniques/NPCs Destroyed 1 | . . . . . . . . . . . . . . . . . . . 1 . . . . . . . . . . . . . Z-Imprinter (-6/Deep Caves) Combat | -11 -10 -10 -9 -9 -9 -8 -8 -7 -7 -7 -7 -7 -7 -6 -6 -6 -6 -6 -6 -5 -5 -5 -5 -5 -5 -5 -4 -4 -4 -4 -4 -4 -------- Run | Scr Mat Min Mat Min Exi Min Mat Fac Was Fac Low Low Dat Pro Fac Low Low Zio Dee Pro Fac Was Fac Upp Upp War Pro Fac Ext Cet Arc Hub Damage Taken 22121 | . . 439 595 600 . 922 226 1244 116 127 94 15 . 114 2724 273 992 . 1231 255 1351 . 99 26 159 1532 173 950 3211 176 79 4398 Core 2821 | . . 41 56 63 . 108 18 182 31 . 34 . . . 384 57 160 . 76 . 226 . 50 13 . 134 27 80 158 13 . 910 Absorbed by Shields 1920 | . . . . . . . . . . . . . . . . . . . . . . . . . . . . 712 566 189 83 370 Reduced by Siege Mode 26 | . . . . . . . . . . . . . . . . . . . 18 . . . . . . . . . . 8 . . Core Remaining (%) 65 | 100 . 83 . . . 43 96 . . . . . . 64 . . . . . 20 . . . . . . 55 . . . . . Volleys Fired 835 | . 11 31 36 56 . 41 18 47 14 6 7 4 . 8 94 7 18 3 47 13 47 9 19 3 11 38 10 64 75 15 21 62 Largest 2 | . 2 2 2 2 . 2 2 2 2 1 2 2 . 2 2 2 2 1 2 2 2 1 2 2 2 2 2 2 2 2 2 2 Hottest 240 | . 40 40 120 98 . 140 134 140 103 33 67 53 . 140 103 109 139 105 150 88 140 65 131 131 131 169 133 169 169 240 153 153 Shots Fired 1357 | . 22 60 50 75 . 65 36 93 28 8 10 10 . 9 159 10 28 3 65 17 85 11 25 6 17 65 15 95 119 25 42 104 Gun 804 | . 22 58 44 31 . 39 36 75 15 5 7 10 . 3 79 3 5 . 11 8 77 11 6 3 4 3 5 68 43 16 31 86 Cannon 420 | . . . 4 32 . 15 . 15 13 1 . . . 4 74 3 8 3 48 9 6 . 19 3 7 26 10 27 59 7 11 16 Launcher 133 | . . 2 2 12 . 11 . 3 . 2 3 . . 2 6 4 15 . 6 . 2 . . . 6 36 . . 17 2 . 2 Special . | . . . . . . . . . . . . . . . . . . . . . . . . . . . . . . . . . Kinetic 537 | . 22 58 10 19 . 10 . 50 15 5 7 10 . . 51 . 5 . . 4 48 1 6 3 4 3 5 68 43 4 20 66 Thermal 343 | . . . 4 32 . 30 36 40 13 1 . . . 7 86 6 8 3 8 9 8 . 18 3 7 7 10 6 . 1 . . Explosive 80 | . . 2 2 12 . 11 . 3 . 2 3 . . 2 6 4 15 . 6 . 2 . . . . 1 . . 7 . . 2 Electromagnetic 382 | . . . 34 12 . 14 . . . . . . . . 16 . . . 51 . 16 10 1 . 6 54 . 21 69 20 22 36 Phasic 15 | . . . . . . . . . . . . . . . . . . . . 4 11 . . . . . . . . . . . Robot Hit Streak 35 | . 5 7 9 10 . 20 12 16 7 1 3 5 . 2 26 35 14 . 10 13 10 6 8 4 8 8 5 13 11 10 6 21 Robot Miss Streak 6 | . 4 4 3 2 . 2 2 2 3 5 2 4 . 2 6 . 4 . 2 1 3 1 1 1 2 4 1 4 5 2 3 3 Penetration Max 1 | . . . . . . . . . 1 . . . . . 1 . . . . . 1 . . . . . . 1 1 . 1 1 Secondary Targets 12 | . . 2 . 2 . 1 . 2 . . . 1 . . . . . . . . . . . . . . . 3 . . . 1 Max Gunslinging Chain 1 | . . 1 . 1 . 1 . 1 . . . 1 . . . . . . . . . . . . . . . 1 . . . 1 Shots Hit Robots 837 | . 12 27 30 34 . 51 28 73 21 1 6 5 . 4 111 10 23 . 33 7 63 9 9 4 8 28 9 44 75 18 24 70 Core Hits 661 | . 6 20 18 39 . 43 17 39 5 8 11 2 . 7 64 12 37 . 27 10 36 2 3 2 9 76 2 17 60 15 11 63 Critical Hits 46 | . . 1 . . . . . 1 2 . . . . . 5 . . . 3 . 5 . 3 1 . . . 2 3 . 4 16 Critical Kills 13 | . . . . . . . . . . . . . . . 2 . . . . . 3 . . . . . . 1 1 . 1 5 Critical Parts Destroyed 29 | . . 1 . . . . . 1 1 . . . . . 3 . . . 3 . 2 . 2 1 . . . 1 2 . 3 9 Melee Attacks 33 | . . . . . . . . 9 6 . . . . . 8 1 . . 2 . 4 . . . . 1 . 2 . . . . Impact . | . . . . . . . . . . . . . . . . . . . . . . . . . . . . . . . . . Slashing 10 | . . . . . . . . . . . . . . . 6 1 . . 2 . . . . . . 1 . . . . . . Piercing 19 | . . . . . . . . 9 6 . . . . . . . . . . . 4 . . . . . . . . . . . Sneak Attacks 5 | . . . . . . . . 1 . . . . . . 2 . . . . . . . . . . . . 2 . . . . Combat Hostiles . | . . . . . . . . . . . . . . . . . . . . . . . . . . . . . . . . . Follow-up Attacks . | . . . . . . . . . . . . . . . . . . . . . . . . . . . . . . . . . Damage Inflicted 37007 | . 147 508 591 1427 . 2084 416 1733 610 261 556 82 . 337 3418 844 3021 . 1703 172 1652 217 302 154 576 4793 268 1508 4169 753 942 3763 Guns 12192 | . 147 369 431 262 . 543 416 1005 285 44 84 82 . 15 1303 56 153 . 110 172 1525 217 109 51 51 47 95 1067 975 348 625 1605 Cannons 7263 | . . . 25 262 . 275 . 299 325 . . . . 62 1499 99 165 . 643 . 127 . 193 103 105 443 173 441 1249 158 234 383 Explosions 17235 | . . 139 135 903 . 1266 . 294 . 217 472 . . 260 472 651 2703 . 950 . . . . . 420 4303 . . 1945 247 83 1775 Melee 317 | . . . . . . . . 135 . . . . . . 144 38 . . . . . . . . . . . . . . . . Ramming . | . . . . . . . . . . . . . . . . . . . . . . . . . . . . . . . . . Kinetic 8133 | . 147 369 78 140 . 141 . 675 285 44 84 82 . . 796 . 153 . . 73 926 . 109 51 51 47 95 1067 975 113 411 1221 Thermal 6743 | . . . 25 262 . 451 416 629 325 . . . . 77 1726 155 165 . 65 . 193 . 193 103 105 1460 173 . 137 . 83 . Explosive 10521 | . . 139 135 903 . 1266 . 294 . 217 472 . . 260 436 651 2703 . 950 . . . . . . . . . 1033 . . 1062 Electromagnetic 10930 | . . . 353 122 . 226 . . . . . . . . 316 . . . 688 . 269 217 . . 420 3286 . 441 2024 640 448 1480 Impact . | . . . . . . . . . . . . . . . . . . . . . . . . . . . . . . . . . Slashing 182 | . . . . . . . . . . . . . . . 144 38 . . . . . . . . . . . . . . . . Piercing 135 | . . . . . . . . 135 . . . . . . . . . . . . . . . . . . . . . . . . Phasic 363 | . . . . . . . . . . . . . . . . . . . . 99 264 . . . . . . . . . . . Highest Corruption 36 | . . 1 . . . . . 11 11 11 11 11 11 11 2 2 . . . . 14 14 . . . 15 . . . 1 1 36 Average Corruption 6 | . . 1 . . . . . 9 11 11 11 11 11 11 1 1 . . . . 7 8 . . . 9 . . . 1 1 1 Corruption Purged 16 | . . . . . . . . . . . . . . . . 2 . . . . . 14 . . . . . . . . . . Effects 269 | . . 3 . . . . . 17 25 22 40 26 7 32 4 7 . . . . 30 41 . . . 3 . . . 1 2 9 Message Errors 63 | . . 1 . . . . . 2 6 5 9 5 1 10 1 4 . . . . 5 9 . . . . . . . 1 2 2 Matter Fused 47 | . . . . . . . . 3 3 2 6 5 1 9 . . . . . . 7 10 . . . 1 . . . . . . Heat Flow Errors 30 | . . . . . . . . 3 4 2 5 1 3 2 2 1 . . . . 2 5 . . . . . . . . . . Energy Discharges 26 | . . . . . . . . 2 3 . 1 3 1 1 . . . . . . 4 7 . . . 1 . . . . . 3 Parts Rejected 1 | . . . . . . . . . . . 1 . . . . . . . . . . . . . . . . . . . . . Data Loss (minor) 24 | . . 2 . . . . . . 1 5 4 3 . 3 1 1 . . . . 1 2 . . . 1 . . . . . . Data Loss (major) 12 | . . . . . . . . 1 . . 5 . . 2 . . . . . . 2 2 . . . . . . . . . . Misfires 9 | . . . . . . . . 1 1 2 . 2 . . . . . . . . 1 2 . . . . . . . . . . Alerts 6 | . . . . . . . . 1 2 . . 2 . . . . . . . . 1 . . . . . . . . . . . Misdirections 34 | . . . . . . . . 3 3 5 8 5 1 4 . . . . . . . 3 . . . . . . . . . 2 Targeting Errors 13 | . . . . . . . . 1 1 1 1 . . . . . . . . . 7 1 . . . . . . . . . 1 Weapon Failures 4 | . . . . . . . . . 1 . . . . 1 . 1 . . . . . . . . . . . . . . . 1 Overload Shots 7 | . . . . . . . . . . . . . . . 3 . . 3 . . . . . . . . . . . 1 . . Overflow Damage 673 | . . . . 17 . 57 . 39 . 14 19 . . . 135 69 88 . 104 . . . . . . 56 . . 30 . 6 39 Projectiles 223 | . . . . 10 . . . 14 . . . . . . 57 . 14 . 93 . . . . . . . . . 29 . 6 . Explosions 351 | . . . . 7 . 57 . 4 . 14 19 . . . . 69 74 . 11 . . . . . . 56 . . 1 . . 39 Melee 99 | . . . . . . . . 21 . . . . . . 78 . . . . . . . . . . . . . . . . . Knockbacks . | . . . . . . . . . . . . . . . . . . . . . . . . . . . . . . . . . Impact . | . . . . . . . . . . . . . . . . . . . . . . . . . . . . . . . . . Kinetic . | . . . . . . . . . . . . . . . . . . . . . . . . . . . . . . . . . Secondary . | . . . . . . . . . . . . . . . . . . . . . . . . . . . . . . . . . Self-Inflicted Damage 759 | . . 20 . 104 . 78 . 30 . . . . . 4 36 . 255 . . . 6 . . . . 94 . . . . 58 74 Shots 28 | . . 1 . 5 . 2 . 2 . . . . . 2 1 . 5 . . . 1 . . . . 3 . . . . 1 5 Rammed . | . . . . . . . . . . . . . . . . . . . . . . . . . . . . . . . . . Targets Rammed . | . . . . . . . . . . . . . . . . . . . . . . . . . . . . . . . . . Kicked . | . . . . . . . . . . . . . . . . . . . . . . . . . . . . . . . . . Crushed . | . . . . . . . . . . . . . . . . . . . . . . . . . . . . . . . . . Highest Temperature 470 | . . 13 250 178 . 383 107 244 227 240 221 153 236 126 240 81 210 108 362 . 146 176 68 66 75 454 351 451 470 194 198 329 Average Temperature 91 | . . 9 58 53 . 114 51 80 71 92 85 85 98 38 30 32 86 47 103 . 38 78 23 28 32 143 134 114 132 82 86 121 Received Heat Transfer 3537 | . . 38 270 173 . 405 126 318 . 18 . 9 . 21 660 93 123 . 246 18 54 . 18 . 30 171 36 122 338 . . 250 Effects 10 | . . . . . . 2 . . . . . . . . . . . . 2 . . . . . . 2 . 1 1 . . 2 Shutdowns 1 | . . . . . . 1 . . . . . . . . . . . . . . . . . . . . . . . . . . Energy Bleed 5 | . . . . . . 1 . . . . . . . . . . . . 2 . . . . . . . . . . . . 2 Matter Decay 1 | . . . . . . . . . . . . . . . . . . . . . . . . . . . . 1 . . . . Short Circuit 1 | . . . . . . . . . . . . . . . . . . . . . . . . . . . . . 1 . . . Damage (major) 2 | . . . . . . . . . . . . . . . . . . . . . . . . . . 2 . . . . . . Siege Activations 3 | . . . . . . . . . . . . . . . . . . . 2 . . . . . . . . . . 1 . . Total Turns 42 | . . . . . . . . . . . . . . . . . . . 24 . . . . . . . . . . 18 . . Longest Duration 18 | . . . . . . . . . . . . . . . . . . . 18 . . . . . . . . . . 18 . . Robots Corrupted 34 | . . . . . . . . . . . . . . . . . . . 3 . 1 1 . . 1 11 . 2 7 3 1 4 Combat Hostiles 32 | . . . . . . . . . . . . . . . . . . . 2 . 1 1 . . 1 11 . 2 7 3 . 4 Parts Fried 64 | . . . 1 . . . . . . . . . . . 2 . . . 2 . 2 . . . 3 25 . 4 12 4 4 5 Impact Corruptions . | . . . . . . . . . . . . . . . . . . . . . . . . . . . . . . . . . Robots Melted 2 | . . . . . . . . . . . . . . . 2 . . . . . . . . . . . . . . . . . Combat Hostiles 2 | . . . . . . . . . . . . . . . 2 . . . . . . . . . . . . . . . . . Parts Melted 25 | . . . . . . 2 3 . . . . . . 1 16 . . . . . . . . . . 2 . . 1 . . . Heat Transferred 9641 | . . . 37 370 . 814 962 1184 481 . . . . 111 2619 261 250 . 87 . 248 . 185 111 111 1275 185 . 250 . 100 . Parts Sabotaged . | . . . . . . . . . . . . . . . . . . . . . . . . . . . . . . . . . Parts Stolen . | . . . . . . . . . . . . . . . . . . . . . . . . . . . . . . . . . Parts Stripped . | . . . . . . . . . . . . . . . . . . . . . . . . . . . . . . . . . Power Chain Reactions 16 | . . . . . . . . . . . . . . . 1 . . . . . . . . . . 10 . . 4 . 1 . Missiles Intercepted . | . . . . . . . . . . . . . . . . . . . . . . . . . . . . . . . . . Alert | -11 -10 -10 -9 -9 -9 -8 -8 -7 -7 -7 -7 -7 -7 -6 -6 -6 -6 -6 -6 -5 -5 -5 -5 -5 -5 -5 -4 -4 -4 -4 -4 -4 ------- Run | Scr Mat Min Mat Min Exi Min Mat Fac Was Fac Low Low Dat Pro Fac Low Low Zio Dee Pro Fac Was Fac Upp Upp War Pro Fac Ext Cet Arc Hub Peak Influence 1686 | . 132 122 216 325 . 351 279 151 38 875 . . . . 324 . . . . . 179 . 559 . . . . 272 410 550 382 1686 Initial 203 | . . 51 27 45 . . 82 35 15 . . . . . 158 . . . . . 12 . . . . . . 12 100 203 187 63 Average 152 | . 54 40 127 125 . 130 175 65 21 537 . . . . 183 . . . . . 80 . 308 . . . . 102 96 389 315 400 Maximum Alert Level 5 | . . . 1 1 . 1 1 . . 3 . . . . 1 . . . . . . . 2 . . . . 1 2 2 1 5 Low Security (%) 71 | 100 100 100 92 81 . 73 61 100 100 14 . . . . 48 . . . . . 100 100 20 . . . . 81 89 . 28 32 Level 1 19 | . . . 7 18 . 26 38 . . 10 . . . . 51 . . . . . . . 26 . . . . 18 10 57 71 24 Level 2 7 | . . . . . . . . . . 52 . . . . . . . . . . . . 52 . . . . . . 42 . 31 Level 3 . | . . . . . . . . . . 21 . . . . . . . . . . . . . . . . . . . . . . Level 4 . | . . . . . . . . . . . . . . . . . . . . . . . . . . . . . . . . 7 Level 5 . | . . . . . . . . . . . . . . . . . . . . . . . . . . . . . . . . 3 High Security . | . . . . . . . . . . . . . . . . . . . . . . . . . . . . . . . . . Max Security . | . . . . . . . . . . . . . . . . . . . . . . . . . . . . . . . . . Squads Dispatched 30 | . 2 . 1 . . . . 5 . 1 . . . . 7 . 1 . . . 2 . 1 . 1 . . 4 2 . . 3 Investigation 1 | . . . . . . . . . . . . . . . . . . . . . . . 1 . . . . . . . . . Extermination 9 | . . . . . . . . 2 . . . . . . 3 . . . . . 2 . . . . . . 2 . . . . Reinforcement 17 | . 2 . 1 . . . . 3 . 1 . . . . 4 . . . . . . . . . . . . 2 2 . . 2 Assault 3 | . . . . . . . . . . . . . . . . . 1 . . . . . . . 1 . . . . . . 1 Garrison . | . . . . . . . . . . . . . . . . . . . . . . . . . . . . . . . . . Intercept . | . . . . . . . . . . . . . . . . . . . . . . . . . . . . . . . . . Construction Impeded 6 | . . . 1 . . . . . . . . . . . 1 . . . . . . . . . . . . 1 2 . . 1 Haulers Reinforced 3 | . . . . . . . . 1 . . . . . . 2 . . . . . . . . . . . . . . . . . Stealth | -11 -10 -10 -9 -9 -9 -8 -8 -7 -7 -7 -7 -7 -7 -6 -6 -6 -6 -6 -6 -5 -5 -5 -5 -5 -5 -5 -4 -4 -4 -4 -4 -4 --------- Run | Scr Mat Min Mat Min Exi Min Mat Fac Was Fac Low Low Dat Pro Fac Low Low Zio Dee Pro Fac Was Fac Upp Upp War Pro Fac Ext Cet Arc Hub Distress Signals 36 | . . 2 . . . . . . . . . . . . 2 . . . . 24 . . . . . . . . 2 2 . 4 Communications Jammed . | . . . . . . . . . . . . . . . . . . . . . . . . . . . . . . . . . Distress Signals . | . . . . . . . . . . . . . . . . . . . . . . . . . . . . . . . . . Times Spotted 493 | . 7 21 13 32 . 22 7 22 6 15 8 6 . 10 39 10 16 . 13 4 11 . 13 7 17 42 1 27 31 15 21 57 Peak Tracking Total 22 | . 3 5 4 4 . 7 3 6 6 4 4 3 . 3 5 5 9 . 6 2 3 . 5 3 5 16 1 10 7 5 1 22 Tactical Retreats 26 | . . 4 2 5 . 3 . . . . . . . . 1 3 1 . 1 . . . . 1 . 3 . 1 1 . . . Traps | -11 -10 -10 -9 -9 -9 -8 -8 -7 -7 -7 -7 -7 -7 -6 -6 -6 -6 -6 -6 -5 -5 -5 -5 -5 -5 -5 -4 -4 -4 -4 -4 -4 ------- Run | Scr Mat Min Mat Min Exi Min Mat Fac Was Fac Low Low Dat Pro Fac Low Low Zio Dee Pro Fac Was Fac Upp Upp War Pro Fac Ext Cet Arc Hub Traps Triggered 4 | . . . . . . . . 1 . . . . . . 1 . . . . 1 1 . . . . . . . . . . . Indirectly . | . . . . . . . . . . . . . . . . . . . . . . . . . . . . . . . . . Trap Hack Attempts . | . . . . . . . . . . . . . . . . . . . . . . . . . . . . . . . . . Triggered . | . . . . . . . . . . . . . . . . . . . . . . . . . . . . . . . . . Disarmed . | . . . . . . . . . . . . . . . . . . . . . . . . . . . . . . . . . Reprogrammed . | . . . . . . . . . . . . . . . . . . . . . . . . . . . . . . . . . Reused . | . . . . . . . . . . . . . . . . . . . . . . . . . . . . . . . . . Traps Extracted . | . . . . . . . . . . . . . . . . . . . . . . . . . . . . . . . . . Installed . | . . . . . . . . . . . . . . . . . . . . . . . . . . . . . . . . . Triggered 22 | . . . . . . . . . . . . 2 . 2 . . 3 . . . . . . 1 8 6 . . . . . . Machines | -11 -10 -10 -9 -9 -9 -8 -8 -7 -7 -7 -7 -7 -7 -6 -6 -6 -6 -6 -6 -5 -5 -5 -5 -5 -5 -5 -4 -4 -4 -4 -4 -4 ---------- Run | Scr Mat Min Mat Min Exi Min Mat Fac Was Fac Low Low Dat Pro Fac Low Low Zio Dee Pro Fac Was Fac Upp Upp War Pro Fac Ext Cet Arc Hub Machines Disabled 55 | . . . . 3 . 1 2 . . 1 . . . . 3 . 1 3 3 . . . 1 . . . . 1 4 4 1 27 Max in Single Turn 15 | . . . . 1 . 1 1 . . 1 . . . . 1 . 1 1 1 . . . . . . . . 1 2 1 . 15 Garrison Access 3 | . . . . . . . . . . . . . . . . . . . . . . . 1 . . . . . . . . 2 Network Hub 3 | . . . . . . . . . . . . . . . . . . . . . . . . . . . . . . . . 3 Machines Sabotaged . | . . . . . . . . . . . . . . . . . . . . . . . . . . . . . . . . . Garrisons Compromised . | . . . . . . . . . . . . . . . . . . . . . . . . . . . . . . . . . Overloaded Fab Kills . | . . . . . . . . . . . . . . . . . . . . . . . . . . . . . . . . . Fab Network Shutdowns . | . . . . . . . . . . . . . . . . . . . . . . . . . . . . . . . . . Hacking | -11 -10 -10 -9 -9 -9 -8 -8 -7 -7 -7 -7 -7 -7 -6 -6 -6 -6 -6 -6 -5 -5 -5 -5 -5 -5 -5 -4 -4 -4 -4 -4 -4 --------- Run | Scr Mat Min Mat Min Exi Min Mat Fac Was Fac Low Low Dat Pro Fac Low Low Zio Dee Pro Fac Was Fac Upp Upp War Pro Fac Ext Cet Arc Hub Machines Accessed 76 | . 1 1 6 . 2 . 2 4 . 4 . . 3 . 10 1 . 1 . . 2 . 8 1 1 . . 11 7 3 . 8 Terminals 50 | . 1 1 5 . . . 2 2 . 4 . . . . 6 . . . . . 2 . 5 . . . . 5 7 3 . 7 Fabricators 5 | . . . . . . . . 1 . . . . . . 1 . . . . . . . 2 . . . . 1 . . . . Repair Stations 3 | . . . . . . . . . . . . . . . 1 . . . . . . . . . . . . 2 . . . . Recycling Units . | . . . . . . . . . . . . . . . . . . . . . . . . . . . . . . . . . Scanalyzers 6 | . . . 1 . . . . 1 . . . . . . 2 . . . . . . . . . . . . 2 . . . . Garrison Access 3 | . . . . . . . . . . . . . . . . . . . . . . . 1 . . . . 1 . . . 1 Total Hacks 197 | . 3 3 14 . 2 . 5 6 . 9 . . 22 . 26 1 . 5 . . 3 . 27 1 5 . . 25 17 5 . 18 Successful 122 | . 2 2 6 . 2 . 2 3 . 6 . . 22 . 19 1 . 5 . . 2 . 14 1 5 . . 10 9 . . 11 Failed 73 | . 1 . 8 . . . 3 3 . 3 . . . . 7 . . . . . 1 . 12 . . . . 15 8 5 . 7 Catastrophic 16 | . . . 1 . . . . 1 . 1 . . . . 1 . . . . . 1 . 4 . . . . 1 2 2 . 2 Database Lockouts 2 | . . 1 . . . . . . . . . . . . . . . . . . . . 1 . . . . . . . . . Manual 92 | . 1 2 10 . . . 6 1 . 4 . . . . 12 . . 1 . . 2 . 15 . . 1 . 5 14 5 . 13 Terminals 121 | . 3 3 11 . . . 5 3 . 9 . . . . 17 . . . . . 3 . 18 . . . . 10 17 5 . 17 Fabricators 15 | . . . . . . . . 2 . . . . . . 4 . . . . . . . 7 . . . . 2 . . . . Repair Stations 8 | . . . . . . . . . . . . . . . 2 . . . . . . . . . . . . 6 . . . . Recycling Units . | . . . . . . . . . . . . . . . . . . . . . . . . . . . . . . . . . Scanalyzers 12 | . . . 3 . . . . 1 . . . . . . 3 . . . . . . . . . . . . 5 . . . . Garrison Access 5 | . . . . . . . . . . . . . . . . . . . . . . . 2 . . . . 2 . . . 1 Terminal Hacks 76 | . 1 2 3 . 2 . 1 . . 4 . . 22 . 7 1 . 5 . . 1 . 7 1 5 . . 4 6 . . 4 Record 13 | . . . . . 2 . . . . . . . 6 . . . . . . . . . . . 5 . . . . . . . Part Schematic 17 | . . . . . . . 1 . . 1 . . 6 . . . . 5 . . . . 1 . . . . 1 1 . . 1 Robot Schematic 7 | . . . . . . . . . . . . . 7 . . . . . . . . . . . . . . . . . . . Robot Analysis 6 | . . 1 1 . . . . . . . . . . . 2 . . . . . . . 1 . . . . . 1 . . . Prototype ID Bank 3 | . . . . . . . . . . . . . 3 . . . . . . . . . . . . . . . . . . . Open Door 2 | . . . . . . . . . . . . . . . . 1 . . . . . . . 1 . . . . . . . . Branch Access Points 6 | . 1 . 1 . . . . . . 1 . . . . 1 . . . . . 1 . 1 . . . . . . . . . Machine Index 1 | . . . . . . . . . . . . . . . 1 . . . . . . . . . . . . . . . . . Terminal Index 3 | . . . . . . . . . . . . . . . 1 . . . . . . . . . . . . 1 . . . 1 Fabricator Index 1 | . . . . . . . . . . . . . . . . . . . . . . . 1 . . . . . . . . . Scanalyzer Index 1 | . . . . . . . . . . 1 . . . . . . . . . . . . . . . . . . . . . . Alert Level 1 | . . . . . . . . . . . . . . . . . . . . . . . . . . . . . . . . 1 Unreport Threat 5 | . . . . . . . . . . . . . . . 1 . . . . . . . 1 . . . . . 2 . . 1 Locate Traps 6 | . . . . . . . . . . 1 . . . . 1 . . . . . . . 1 . . . . 1 2 . . . Recall Extermination 1 | . . . . . . . . . . . . . . . . . . . . . . . . . . . . 1 . . . . Zone Layout 3 | . . 1 1 . . . . . . . . . . . . . . . . . . . 1 . . . . . . . . . Fabricator Hacks 8 | . . . . . . . . 2 . . . . . . 2 . . . . . . . 4 . . . . . . . . . Load Schematic 4 | . . . . . . . . 1 . . . . . . 1 . . . . . . . 2 . . . . . . . . . Build 4 | . . . . . . . . 1 . . . . . . 1 . . . . . . . 2 . . . . . . . . . Repair Station Hacks 6 | . . . . . . . . . . . . . . . 2 . . . . . . . . . . . . 4 . . . . Scan Component 3 | . . . . . . . . . . . . . . . 1 . . . . . . . . . . . . 2 . . . . Repair 3 | . . . . . . . . . . . . . . . 1 . . . . . . . . . . . . 2 . . . . Recycling Unit Hacks . | . . . . . . . . . . . . . . . . . . . . . . . . . . . . . . . . . Scanalyzer 5 | . . . 2 . . . . . . . . . . . 2 . . . . . . . . . . . . 1 . . . . Insert Component 3 | . . . 1 . . . . . . . . . . . 1 . . . . . . . . . . . . 1 . . . . Analyze 2 | . . . 1 . . . . . . . . . . . 1 . . . . . . . . . . . . . . . . . Garrison Access Hacks 2 | . . . . . . . . . . . . . . . . . . . . . . . 1 . . . . . . . . 1 Seal Access 2 | . . . . . . . . . . . . . . . . . . . . . . . 1 . . . . . . . . 1 Unauthorized Hacks 25 | . 1 . 1 . . . 1 1 . 2 . . . . 6 . . . . . 1 . 2 . . . . 1 3 . . 6 Terminals 22 | . 1 . 1 . . . 1 1 . 2 . . . . 4 . . . . . 1 . 1 . . . . 1 3 . . 6 Track 5 | . . . . . . . . 1 . 1 . . . . . . . . . . . . . . . . . . 1 . . 2 Assimilate 3 | . . . . . . . . . . . . . . . 2 . . . . . . . . . . . . . . . . 1 Botnet 13 | . 1 . 1 . . . 1 . . 1 . . . . 2 . . . . . 1 . 1 . . . . 1 2 . . 2 Operators 1 | . . . . . . . . . . . . . . . . . . . . . . . . . . . . . . . . 1 Fabricators 3 | . . . . . . . . . . . . . . . 2 . . . . . . . 1 . . . . . . . . . Report 1 | . . . . . . . . . . . . . . . 1 . . . . . . . . . . . . . . . . . Prioritize 1 | . . . . . . . . . . . . . . . . . . . . . . . 1 . . . . . . . . . Siphon 1 | . . . . . . . . . . . . . . . 1 . . . . . . . . . . . . . . . . . Repair Stations . | . . . . . . . . . . . . . . . . . . . . . . . . . . . . . . . . . Recycling Units . | . . . . . . . . . . . . . . . . . . . . . . . . . . . . . . . . . Scanalyzers . | . . . . . . . . . . . . . . . . . . . . . . . . . . . . . . . . . Garrison Access . | . . . . . . . . . . . . . . . . . . . . . . . . . . . . . . . . . Data Cores Recovered 3 | . . . . . . . . . . 1 . . . . 1 . . . . . . . 1 . . . . . . . . . Used 3 | . . . . . . . . . . 1 . . . . 1 . . . . . . . 1 . . . . . . . . . Hacking Detections 53 | . 1 . 5 . . . 1 3 . 3 . . . . 10 . . . . . 2 . 5 . . . . 9 5 3 . 6 Full Trace Events 1 | . . . . . . . . . . . . . . . . . . . . . . . 1 . . . . . . . . . Feedback Events . | . . . . . . . . . . . . . . . . . . . . . . . . . . . . . . . . . Feedback Blocked . | . . . . . . . . . . . . . . . . . . . . . . . . . . . . . . . . . Robot Schematics Acquired 7 | . . . . . . . . . . . . . 7 . . . . . . . . . . . . . . . . . . . Robots Built 1 | . . . . . . . . . . . . . . . . . . . . . . . 1 . . . . . . . . . Matter 318 | . . . . . . . . . . . . . . . . . . . . . . . 318 . . . . . . . . . Time 84 | . . . . . . . . . . . . . . . . . . . . . . . 84 . . . . . . . . . Total Robot Build Rating 6 | . . . . . . . . . . . . . . . . . . . . . . . 6 . . . . . . . . . Part Schematics Acquired 19 | . . . 1 . . . 1 . . 1 . . 6 . 1 . . 5 . . . . 1 . . . . 1 1 . . 1 Parts Built 4 | . . . . . . . . 2 . . . . . . 1 . . . . . . . 1 . . . . . . . . . Matter 716 | . . . . . . . . 146 . . . . . . 285 . . . . . . . 285 . . . . . . . . . Time 377 | . . . . . . . . 73 . . . . . . 152 . . . . . . . 152 . . . . . . . . . Total Part Build Rating 16 | . . . . . . . . 6 . . . . . . 5 . . . . . . . 5 . . . . . . . . . Parts Repaired 3 | . . . . . . . . . . . . . . . 1 . . . . . . . . . . . . 2 . . . . Time 131 | . . . . . . . . . . . . . . . 62 . . . . . . . . . . . . 69 . . . . Parts Recycled . | . . . . . . . . . . . . . . . . . . . . . . . . . . . . . . . . . Recycled Matter . | . . . . . . . . . . . . . . . . . . . . . . . . . . . . . . . . . Retrieved Matter . | . . . . . . . . . . . . . . . . . . . . . . . . . . . . . . . . . Retrieved Components . | . . . . . . . . . . . . . . . . . . . . . . . . . . . . . . . . . Parts Scanalyzed 3 | . . . 1 . . . . . . . . . . . 1 . . . . . . . . . . . . 1 . . . . Part Schematics Acquired 2 | . . . 1 . . . . . . . . . . . 1 . . . . . . . . . . . . . . . . . Parts Damaged . | . . . . . . . . . . . . . . . . . . . . . . . . . . . . . . . . . Bothacking | -11 -10 -10 -9 -9 -9 -8 -8 -7 -7 -7 -7 -7 -7 -6 -6 -6 -6 -6 -6 -5 -5 -5 -5 -5 -5 -5 -4 -4 -4 -4 -4 -4 ------------ Run | Scr Mat Min Mat Min Exi Min Mat Fac Was Fac Low Low Dat Pro Fac Low Low Zio Dee Pro Fac Was Fac Upp Upp War Pro Fac Ext Cet Arc Hub Used RIF Installer . | . . . . . . . . . . . . . . . . . . . . . . . . . . . . . . . . . Robots Hacked 3 | . . . . . . . . . . . . . . . 2 . . . . . . . . . . . . 1 . . . . Non-combat 3 | . . . . . . . . . . . . . . . 2 . . . . . . . . . . . . 1 . . . . Combat . | . . . . . . . . . . . . . . . . . . . . . . . . . . . . . . . . . Robot Hacks Applied 3 | . . . . . . . . . . . . . . . 2 . . . . . . . . . . . . 1 . . . . parse_system 1 | . . . . . . . . . . . . . . . 1 . . . . . . . . . . . . . . . . . find_chute 2 | . . . . . . . . . . . . . . . 1 . . . . . . . . . . . . 1 . . . . Relay Couplers Released 5 | . . . . . . . . . . . . . . . . . . . . . . . 3 . . . . . . . . 2 Machine Destruction 2 | . . . . . . . . . . . . . . . . . . . . . . . . . . . . . . . . 2 Programmers 3 | . . . . . . . . . . . . . . . . . . . . . . . 3 . . . . . . . . . Robots Rewired 17 | . . . . . . . . . . . . . . . . . 2 . . . . . . . 1 . . . 14 . . . Allies Hacked 2 | . . . . . . . . . . . . . . . . . . . . . . . 2 . . . . . . . . . Hacks Repelled . | . . . . . . . . . . . . . . . . . . . . . . . . . . . . . . . . . Allies | -11 -10 -10 -9 -9 -9 -8 -8 -7 -7 -7 -7 -7 -7 -6 -6 -6 -6 -6 -6 -5 -5 -5 -5 -5 -5 -5 -4 -4 -4 -4 -4 -4 -------- Run | Scr Mat Min Mat Min Exi Min Mat Fac Was Fac Low Low Dat Pro Fac Low Low Zio Dee Pro Fac Was Fac Upp Upp War Pro Fac Ext Cet Arc Hub Total Allies 74 | . . . . 1 . . . . 19 . . . . 1 2 . 2 2 . . . 20 4 . 1 . . . 19 2 . 1 Largest Group 20 | . . . . 1 . . . . 19 17 12 10 7 8 6 . 2 2 2 . . 20 20 17 16 9 . . 9 4 3 2 Highest-Rated Group 839 | . . . . 31 . . . . 477 446 320 279 204 298 238 . 49 188 188 . . 786 839 702 673 347 . . 401 384 338 188 Highest-Rated Ally 156 | . . . . 31 . . . . 35 35 31 31 31 94 94 . 29 94 94 . . 46 60 46 46 46 . . 156 150 150 94 Total Orders 5 | . . . . . . . . . . . . . . . . . . . . . 3 . . . . . . . . 2 . . STAY 1 | . . . . . . . . . . . . . . . . . . . . . . . . . . . . . . 1 . . FOLLOW 1 | . . . . . . . . . . . . . . . . . . . . . . . . . . . . . . 1 . . RETURN 3 | . . . . . . . . . . . . . . . . . . . . . 3 . . . . . . . . . . . Ally Attacks 769 | . . . . 13 . . . . 83 80 20 54 . 30 17 . 2 . 41 . . . 134 36 101 . . . 78 44 20 16 Total Damage 18456 | . . . . 230 . . . . 3413 1334 113 658 . 588 224 . 40 . 1160 . . . 3080 864 2312 . . . 2127 1165 640 508 Kills 133 | . . . . 5 . . . . 7 17 3 7 . 9 3 . . . 7 . . . 20 5 19 . . . 15 10 3 3 Allies Corrupted 10 | . . . . . . . . . . . . . . . . . . . . . . . . . . 9 . . . . . 1 Allies Melted . | . . . . . . . . . . . . . . . . . . . . . . . . . . . . . . . . . Intel | -11 -10 -10 -9 -9 -9 -8 -8 -7 -7 -7 -7 -7 -7 -6 -6 -6 -6 -6 -6 -5 -5 -5 -5 -5 -5 -5 -4 -4 -4 -4 -4 -4 ------- Run | Scr Mat Min Mat Min Exi Min Mat Fac Was Fac Low Low Dat Pro Fac Low Low Zio Dee Pro Fac Was Fac Upp Upp War Pro Fac Ext Cet Arc Hub Robot Analysis Total 6 | . . 1 1 . . . . . . . . . . . 2 . . . . . . . 1 . . . . . 1 . . . Derelict Logs Recovered 14 | . . 2 . . . . . . . . 1 1 . 2 . 2 . 1 . 2 . . . 1 1 . 1 . . . . . Drone Launches 3 | . . . . . . . . . . . . . . . . . . . . . 3 . . . . . . . . . . . Drone Recoveries 3 | . . . . . . . . . . . . . . . . . . . . . 3 . . . . . . . . . . . Exploration | -11 -10 -10 -9 -9 -9 -8 -8 -7 -7 -7 -7 -7 -7 -6 -6 -6 -6 -6 -6 -5 -5 -5 -5 -5 -5 -5 -4 -4 -4 -4 -4 -4 ------------- Run | Scr Mat Min Mat Min Exi Min Mat Fac Was Fac Low Low Dat Pro Fac Low Low Zio Dee Pro Fac Was Fac Upp Upp War Pro Fac Ext Cet Arc Hub Turns Passed 28932 | 48 194 1038 456 1251 539 556 422 1232 487 443 875 510 101 758 2144 1647 858 716 1654 905 800 1211 901 1032 994 1246 190 1332 2467 560 534 831 Spaces Moved 15796 | 40 148 701 239 650 320 210 167 571 316 342 740 435 83 632 1124 753 459 619 1094 387 406 402 583 549 523 603 122 718 1131 246 161 322 Core 6 | 2 . . . . . . . . . . . . . . . . . . . . . . . . . . . . . . . 4 Treads 4968 | . . 202 100 650 320 210 167 363 . . . . . . . . 100 . 43 . . . 23 549 523 562 . . 431 246 161 318 Legs 1796 | . . . . . . . . . . . . . . . 161 . . . . . 54 . . . . 41 122 718 700 . . . Wheels 9026 | 38 148 499 139 . . . . 208 316 342 740 435 83 632 963 753 359 619 1051 387 352 402 560 . . . . . . . . . Hover . | . . . . . . . . . . . . . . . . . . . . . . . . . . . . . . . . . Flight . | . . . . . . . . . . . . . . . . . . . . . . . . . . . . . . . . . Fastest Speed 50 | 50 90 90 90 160 160 180 180 110 110 110 110 110 110 110 110 120 120 110 110 110 106 106 106 180 180 130 130 130 130 180 160 50 Average Speed 141 | 88 94 119 128 164 167 189 206 162 112 110 110 110 110 110 137 159 164 113 119 110 124 106 118 180 180 177 130 147 168 180 177 178 Slowest Speed 300 | 100 100 180 180 180 180 200 220 220 120 110 120 110 110 110 270 160 260 120 180 110 180 120 180 180 180 200 130 160 300 180 180 180 Overloaded Moves . | . . . . . . . . . . . . . . . . . . . . . . . . . . . . . . . . . Propulsion Burnouts . | . . . . . . . . . . . . . . . . . . . . . . . . . . . . . . . . . Robots Hopped . | . . . . . . . . . . . . . . . . . . . . . . . . . . . . . . . . . Cave-ins Triggered . | . . . . . . . . . . . . . . . . . . . . . . . . . . . . . . . . . Exploration Rate (%) 56 | 3 26 99 34 94 62 54 15 17 88 15 93 68 75 70 28 90 60 81 91 48 12 89 19 74 68 58 35 22 68 79 79 45 Regions Visited 32 Branch Regions 21 Pre-discovered Areas 6 | . . . . . . . . . . . . . 1 . . 1 . 2 . . . . . 1 1 . . . . . . . Known Exits Taken 22 | . 1 . 1 . . . . . . 1 1 1 1 1 1 1 1 1 1 1 . . 1 1 1 1 1 1 1 1 1 . Unknown Exits Taken 6 | 1 . 1 . 1 1 1 1 . . . . . . . . . . . . . . . . . . . . . . . . . Scrap Searched 28 | . . 1 . . . . . . . . 4 5 . 2 . 1 3 2 . 3 . . . 2 3 . 2 . . . . . Spaces Dug 204 | . . . . . . 15 . 3 4 . 10 . . 13 16 24 1 . 5 9 18 . 11 . 3 7 5 25 32 . . 3 Terrain Destroyed 1479 | . . 13 18 80 . 84 . 21 6 12 29 . . 31 80 57 143 . 27 10 47 . 14 . 4 64 7 65 108 . 15 544 Melee 13 | . . . . . . . . 3 4 . . . . . 3 . . . 2 . . . . . . 1 . . . . . . Projectile 191 | . . . 2 2 . 4 . . 2 . . . . . 17 . 1 . 3 10 8 . 14 . 4 7 7 65 21 . 8 16 AOE 1275 | . . 13 16 78 . 80 . 18 . 12 29 . . 31 60 57 142 . 22 . 39 . . . . 56 . . 87 . 7 528 Terrain Rammed . | . . . . . . . . . . . . . . . . . . . . . . . . . . . . . . . . . Walls Destroyed . | . . . . . . . . . . . . . . . . . . . . . . . . . . . . . . . . . Machines Disabled . | . . . . . . . . . . . . . . . . . . . . . . . . . . . . . . . . . Actions | -11 -10 -10 -9 -9 -9 -8 -8 -7 -7 -7 -7 -7 -7 -6 -6 -6 -6 -6 -6 -5 -5 -5 -5 -5 -5 -5 -4 -4 -4 -4 -4 -4 --------- Run | Scr Mat Min Mat Min Exi Min Mat Fac Was Fac Low Low Dat Pro Fac Low Low Zio Dee Pro Fac Was Fac Upp Upp War Pro Fac Ext Cet Arc Hub Total 20876 | 49 179 837 337 756 325 302 208 769 409 403 786 460 92 684 1543 1184 530 629 1377 848 602 1180 769 588 557 710 136 892 1554 338 371 472 Wait 3228 | . 18 86 43 35 . 34 11 106 62 41 30 18 10 31 235 414 14 1 135 432 70 737 145 35 10 10 . 58 178 42 129 58 Move 15766 | 39 147 700 238 649 319 209 166 571 315 341 739 434 82 631 1123 752 458 618 1093 386 406 401 582 548 522 602 121 717 1130 245 160 322 Hop . | . . . . . . . . . . . . . . . . . . . . . . . . . . . . . . . . . Pick Up 225 | 4 2 8 4 4 2 6 4 12 3 10 3 1 . 3 23 1 4 1 23 . 19 8 6 1 2 9 1 11 6 7 36 1 Fast Attach 109 | 6 . 2 6 1 . 3 1 8 . . . . . 1 10 1 5 3 18 2 9 4 2 . . 5 . 1 10 5 5 1 Attach 109 | . 1 2 3 3 . 7 5 10 2 1 1 . . 2 18 2 5 . 12 . 14 . . . . 4 . 6 3 1 1 6 Detach 35 | . . . . . . . . 2 1 . . . . . 4 . . 1 4 . 4 . . . . 5 . . 5 1 4 4 Swap 244 | . . 5 1 7 2 1 1 3 6 1 6 . . 4 20 5 9 . 12 4 23 6 5 . 8 22 4 23 41 10 3 12 Drop 169 | . . 3 6 1 2 1 2 1 . 3 . 3 . 4 8 1 5 2 31 3 6 15 10 1 2 13 . 10 6 12 12 6 Fire 835 | . 11 31 36 56 . 41 18 47 14 6 7 4 . 8 94 7 18 3 47 13 47 9 19 3 11 38 10 64 75 15 21 62 Melee 33 | . . . . . . . . 9 6 . . . . . 8 1 . . 2 . 4 . . . . 1 . 2 . . . . Ram . | . . . . . . . . . . . . . . . . . . . . . . . . . . . . . . . . . Kick . | . . . . . . . . . . . . . . . . . . . . . . . . . . . . . . . . . Crush . | . . . . . . . . . . . . . . . . . . . . . . . . . . . . . . . . . Escape Stasis 8 | . . . . . . . . . . . . . . . . . . . . 8 . . . . . . . . . . . . Rewire 115 | . . . . . . . . . . . . . . . . . 12 . . . . . . . 2 1 . . 100 . . . Trap . | . . . . . . . . . . . . . . . . . . . . . . . . . . . . . . . . . Miscellaneous . | . . . . . . . . . . . . . . . . . . . . . . . . . . . . . . . . . Route ------- -11/Scrapyard -10/Materials (discovered 2 exits: *Min x2) -10/Mines (discovered 2 exits: *Mat x2) -9/Materials (discovered 2 exits: *Mat / *Min) -9/Mines (discovered 3 exits: *Mat x2 / *Exi) -9/Exiles -8/Mines -8/Materials -7/Factory -7/Waste -7/Factory (discovered 4 exits: Sto x2 / *Low x2) -7/Lower Caves -7/Lower Caves (discovered 2 exits: *Fac / *Dat) -7/Data Miner -6/Proximity Caves -6/Factory (discovered 2 exits: *Low x2) -6/Lower Caves -6/Lower Caves -6/Zion -6/Deep Caves -5/Proximity Caves -5/Factory (discovered 5 exits: *Fac x3 / *Upp x2) -5/Waste -5/Factory (discovered 2 exits: *Upp x2) -5/Upper Caves -5/Upper Caves (discovered 2 exits: *Fac / *War) -5/Warlord -4/Proximity Caves -4/Factory (discovered 5 exits: *Res x2 / *Upp / *Ext x2) -4/Extension (discovered 3 exits: *Res x2 / *Cet) -4/Cetus (discovered 2 exits: *Res / *Arc) -4/Archives (discovered 2 exits: *Res / *Hub) -4/Hub_04(d) (discovered 3 exits: *Res x3) History --------- Turn | Location | Event 21 | -11/Scrapyard | Discovered new exit (range 16) 49 | -11/Scrapyard | Entered Materials 188 | -10/Materials | Identified exit to Mines 243 | -10/Materials | Entered Mines 248 | -10/Mines | Met a Derelict bent on vengeance 317 | -10/Mines | Build established: Mutant 319 | -10/Mines | Learned Materials security intel 425 | -10/Mines | Discovered new exit (range 6) 471 | -10/Mines | Assembled infested the area 475 | -10/Mines | Central database locked down 965 | -10/Mines | Joined a pair of Derelicts in attacking an 0b10 outpost 1200 | -10/Mines | Discovered new exit (range 10) 1281 | -10/Mines | Entered Materials 1281 | -9/Materials | Evolved 2 slots: Utility x2 1601 | -9/Materials | Discovered new exit (range 16) 1647 | -9/Materials | Identified exit to Mines 1737 | -9/Materials | Entered Mines 1873 | -9/Mines | Excavation squad dispatched 1873 | -9/Mines | A large section of the Mines collapsed 2123 | -9/Mines | Excavation squad dispatched 2303 | -9/Mines | Discovered new exit (range 15) 2363 | -9/Mines | Received a Rocket Launcher from a helpful Derelict 2418 | -9/Mines | A weapon hastily lodged in a ceiling crevice suddenly fell to the ground 2510 | -9/Mines | Deemed a non-threat by the Exiles lab entrance 2510 | -9/Mines | Discovered new exit (range 5) 2535 | -9/Mines | Received a Mining Laser from a helpful Derelict 2836 | -9/Mines | Discovered new exit (range 13) 2881 | -9/Mines | Build established: Scavenger-Mutant 2988 | -9/Mines | Entered Exiles 2988 | -9/Exiles | Found Exiles lab abandoned 3511 | -9/Exiles | Discovered new exit (range 10) 3527 | -9/Exiles | Entered Mines 3901 | -8/Mines | Destroyed 7 combat bots 3953 | -8/Mines | Discovered new exit (range 16) 3977 | -8/Mines | Core integrity fell below 50% 4032 | -8/Mines | Lost 6 parts (1p2n1u2w) 4083 | -8/Mines | Entered Materials 4083 | -8/Materials | Evolved 2 slots: Utility x2 4449 | -8/Materials | Discovered new exit (range 5) 4505 | -8/Materials | Entered Factory 4505 | -7/Factory | Evolved 2 slots: Utility x2 4506 | -7/Factory | Identified exit to Storage 5395 | -7/Factory | Lost 9 parts (1p2n3u3w) 5539 | -7/Factory | Fabricated Imp. Utility Shielding? 5592 | -7/Factory | System corruption reached 10% 5737 | -7/Factory | Sucked down chute 5737 | -7/Factory | Entered Waste 5777 | -7/Waste | Spotted C-40 Crusher 5882 | -7/Waste | Spotted C-40 Crusher 5882 | -7/Waste | Spotted C-40 Crusher 5950 | -7/Waste | Spotted C-40 Crusher 5950 | -7/Waste | Spotted C-40 Crusher 5964 | -7/Waste | Spotted C-40 Crusher 5971 | -7/Waste | Warlord forces began an assault 5977 | -7/Waste | Destroyed C-40 Crusher 5978 | -7/Waste | Allies destroyed C-40 Crusher 5982 | -7/Waste | Allies destroyed C-40 Crusher 5983 | -7/Waste | Allies destroyed C-40 Crusher 5988 | -7/Waste | Allies destroyed C-40 Crusher 5990 | -7/Waste | Allies destroyed C-40 Crusher 6056 | -7/Waste | Build established: Hauler-Mutant 6116 | -7/Waste | Discovered new exit (range 22) 6224 | -7/Waste | Entered Factory 6224 | -7/Factory | Accompanied by 17 allies 6302 | -7/Factory | Identified exit to Lower Caves 6667 | -7/Factory | Entered Lower Caves 6667 | -7/Lower Caves | Accompanied by 12 allies 6800 | -7/Lower Caves | Learned Factory emergency access door positions 6975 | -7/Lower Caves | Build established: Hauler-Skirmisher 7311 | -7/Lower Caves | Discovered new exit (range 7) 7511 | -7/Lower Caves | Identified exit to Lower Caves 7542 | -7/Lower Caves | Entered another Lower Caves area 7542 | -7/Lower Caves | Accompanied by 10 allies 7558 | -7/Lower Caves | Discovered new exit (range 11) 7567 | -7/Lower Caves | Build established: Scavenger-Skirmisher 7678 | -7/Lower Caves | Encountered a Warlord checkpoint 7938 | -7/Lower Caves | Learned Factory garrison access intel 8015 | -7/Lower Caves | Discovered new exit (range 9) 8031 | -7/Lower Caves | Identified exit to Data Miner 8052 | -7/Lower Caves | Entered Data Miner 8052 | -7/Data Miner | Accompanied by 7 allies 8052 | -7/Data Miner | Discovered new exit (range 6) 8067 | -7/Data Miner | Met Data Miner 8096 | -7/Data Miner | Learned location of Section 7 (-2) 8096 | -7/Data Miner | Acquired the access code to Warlord's prototype stash 8117 | -7/Data Miner | Received God Mode back door access code from Data Miner 8142 | -7/Data Miner | Identified exit to Proximity Caves 8153 | -7/Data Miner | Entered Proximity Caves 8153 | -6/Proximity Caves | Accompanied by 7 allies 8172 | -6/Proximity Caves | Escorted by Enhanced Grunt 8585 | -6/Proximity Caves | Attracted the attention of an 0b10 checkpoint 8879 | -6/Proximity Caves | Discovered new exit (range 15) 8895 | -6/Proximity Caves | Identified exit to Factory 8911 | -6/Proximity Caves | Entered Factory 8911 | -6/Factory | Accompanied by 6 allies 8911 | -6/Factory | Evolved 2 slots: Utility x2 8912 | -6/Factory | Identified exit to Lower Caves 8914 | -6/Factory | Loaded intel: 4 garrison access locations 9083 | -6/Factory | Fabricated Exp. Sensor Array? 9205 | -6/Factory | Repaired Micro-nuke Launcher 9584 | -6/Factory | Lost 7 parts (1p2n1u3w) 9610 | -6/Factory | Found Prototype Processor 9610 | -6/Factory | Identified Exp. Targeting Computer 9974 | -6/Factory | Lost 5 parts (1p2n2w) 10224 | -6/Factory | Build established: Hauler-Mutant 11055 | -6/Factory | Entered Lower Caves 11057 | -6/Lower Caves | Attracted the attention of an 0b10 checkpoint 11066 | -6/Lower Caves | Core integrity fell below 50% 11821 | -6/Lower Caves | Build established: Hauler-Assassin 12033 | -6/Lower Caves | Learned location of Zion (-6) 12277 | -6/Lower Caves | Encountered a Warlord checkpoint 12284 | -6/Lower Caves | Learned Factory garrison access intel 12473 | -6/Lower Caves | Discovered new exit (range 9) 12489 | -6/Lower Caves | Identified exit to Lower Caves 12702 | -6/Lower Caves | Entered another Lower Caves area 12732 | -6/Lower Caves | Attracted the attention of an 0b10 outpost 12805 | -6/Lower Caves | Destroyed 13 combat bots 12942 | -6/Lower Caves | Encountered a Warlord checkpoint 13255 | -6/Lower Caves | Discovered new exit (range 13) 13272 | -6/Lower Caves | Identified exit to Zion 13446 | -6/Lower Caves | Found Alien Artifact 13446 | -6/Lower Caves | Identified Core Expander 13446 | -6/Lower Caves | Installed Core Expander, added new Propulsion slot 13560 | -6/Lower Caves | Entered Zion 13594 | -6/Zion | Given the Hacking Drone Bay 13595 | -6/Zion | Found Prototype Device 13595 | -6/Zion | Identified Hacking Drone Bay 13721 | -6/Zion | Learned location of Warlord (-5) 13730 | -6/Zion | Build established: Hauler-Mutant 13902 | -6/Zion | Learned location of 1 exit from Factory 13905 | -6/Zion | Given A8's code to call for help 13923 | -6/Zion | Learned location of Quarantine (-2) 14247 | -6/Zion | Discovered new exit (range 3) 14247 | -6/Zion | Saw the warning signs outside the Deep Caves entrance 14262 | -6/Zion | Enhanced Grunt warped into view, answering call for help 14263 | -6/Zion | Enhanced Grunt warped into view, answering call for help 14272 | -6/Zion | Identified exit to Deep Caves 14276 | -6/Zion | Entered Deep Caves 14276 | -6/Deep Caves | Accompanied by 2 allies 14451 | -6/Deep Caves | Z-Facility disabled 14456 | -6/Deep Caves | Attacked by Z-Imprinter 14484 | -6/Deep Caves | Allies destroyed Z-Imprinter 14756 | -6/Deep Caves | Found Prototype Protection 14756 | -6/Deep Caves | Identified Zio. Weapon Casing 14762 | -6/Deep Caves | Lost 6 parts (1n3u2w) 14806 | -6/Deep Caves | Build established: Scavenger-Mutant 14813 | -6/Deep Caves | Found Prototype Protection 14813 | -6/Deep Caves | Identified Zio. Heavy Carapace 15015 | -6/Deep Caves | Spotted as-02854 15062 | -6/Deep Caves | Destroyed as-02854 15066 | -6/Deep Caves | Found GOLEM Unit 15110 | -6/Deep Caves | Found Surveybot 24 Scanner 15112 | -6/Deep Caves | Found Surveybot 24 Chip 15362 | -6/Deep Caves | Found Zio. Heavy Carapace 15528 | -6/Deep Caves | Build established: Hauler-Mutant 15599 | -6/Deep Caves | Spotted as-66678 15634 | -6/Deep Caves | Destroyed as-66678 15659 | -6/Deep Caves | Found Prototype Slashing Weapon 15662 | -6/Deep Caves | Lost 3 parts (2u1w) 15829 | -6/Deep Caves | Found Zio. Heavy Carapace 15924 | -6/Deep Caves | Discovered new exit (range 6) 15929 | -6/Deep Caves | Identified exit to Proximity Caves 15930 | -6/Deep Caves | Entered Proximity Caves 15934 | -5/Proximity Caves | Learned Factory trap positions 15977 | -5/Proximity Caves | Learned 4 Factory zone layouts 16443 | -5/Proximity Caves | Received a Behemoth hack from an annoying Tinkerer 16825 | -5/Proximity Caves | Discovered new exit (range 10) 16834 | -5/Proximity Caves | Identified exit to Factory 16835 | -5/Proximity Caves | Entered Factory 16835 | -5/Factory | Evolved 2 slots: Utility x2 16836 | -5/Factory | Identified exit to Factory 16838 | -5/Factory | Loaded intel: 117 trap records 16839 | -5/Factory | Loaded intel: 3 garrison access locations 16854 | -5/Factory | Discovered new exit (range 6) 16865 | -5/Factory | Identified exit to Upper Caves 16995 | -5/Factory | Discovered exit to Factory (range 13) 17001 | -5/Factory | Lost 3 parts (2u1w) 17004 | -5/Factory | Identified Longsword +1 17246 | -5/Factory | Lost 3 parts (1u2w) 17390 | -5/Factory | System corruption reached 10% 17422 | -5/Factory | Lost 3 parts (1p1n1u) 17548 | -5/Factory | Build established: Scavenger-Mutant 17635 | -5/Factory | Sucked down chute 17635 | -5/Factory | Entered Waste 17636 | -5/Waste | Joined by Warlord forces that had cleared the area 17642 | -5/Waste | Found Unknown Launcher 17643 | -5/Waste | Identified Fusion Bomb Launcher 17683 | -5/Waste | Found Damper Plating 17692 | -5/Waste | Found Damper Plating 17703 | -5/Waste | Found Damper Plating 17712 | -5/Waste | Found Fusion Bomb Launcher 17799 | -5/Waste | Discovered new exit (range 13) 18823 | -5/Waste | Identified exit to Factory 18846 | -5/Waste | Entered Factory 18846 | -5/Factory | Accompanied by 20 allies 19415 | -5/Factory | Central database locked down 19578 | -5/Factory | Fabricated I-47 Archangel (x1) 19616 | -5/Factory | Allied Derelicts emerged from ambush trap array 19682 | -5/Factory | Fabricated Exp. Signal Interpreter (x1) 19704 | -5/Factory | P-80 Master assimilated allied Q5-AVQ(g) 19710 | -5/Factory | P-80 Master assimilated allied Archangel 6a 19747 | -5/Factory | Entered Upper Caves 19747 | -5/Upper Caves | Accompanied by 17 allies 19953 | -5/Upper Caves | Acquired the password to a Derelict Tinkerer's latest research 20737 | -5/Upper Caves | Discovered new exit (range 6) 20740 | -5/Upper Caves | Learned location of Armory (-3) 20761 | -5/Upper Caves | Identified exit to Upper Caves 20779 | -5/Upper Caves | Entered another Upper Caves area 20779 | -5/Upper Caves | Accompanied by 16 allies 20939 | -5/Upper Caves | Discovered exit to Factory (range 9) 21090 | -5/Upper Caves | Learned Armory stockpile data 21090 | -5/Upper Caves | Learned Armory trap positions 21234 | -5/Upper Caves | Attracted the attention of an 0b10 outpost 21706 | -5/Upper Caves | Learned Factory emergency access door positions 21736 | -5/Upper Caves | Discovered new exit (range 9) 21761 | -5/Upper Caves | Identified exit to Warlord 21773 | -5/Upper Caves | Entered Warlord 21773 | -5/Warlord | Accompanied by 9 allies 21817 | -5/Warlord | Discovered new exit (range 15) 21870 | -5/Warlord | Build established: Hauler-Mutant 21892 | -5/Warlord | System corruption cleaned by Quarantine Array 22050 | -5/Warlord | Received a Watcher feed algorithm from an ecstatic Tinkerer 22457 | -5/Warlord | Met Warlord 22473 | -5/Warlord | Opened Warlord's prototype stash 22479 | -5/Warlord | Found Prototype Device 22479 | -5/Warlord | Identified Exp. Focal Shield 22482 | -5/Warlord | Warlord's base attacked by MAIN.C 22482 | -5/Warlord | Found Prototype Processor 22492 | -5/Warlord | Found Prototype Reactor 22498 | -5/Warlord | Found Exp. Targeting Computer 22772 | -5/Warlord | Destroyed 12 combat bots 22816 | -5/Warlord | Spotted Executioner 22818 | -5/Warlord | Destroyed Executioner 22820 | -5/Warlord | Spotted Executioner 22825 | -5/Warlord | Destroyed Executioner 22832 | -5/Warlord | Warlord forces counterattacked 22846 | -5/Warlord | Destroyed 14 combat bots 22861 | -5/Warlord | Found Prototype Device 22888 | -5/Warlord | Spotted Executioner 22888 | -5/Warlord | Spotted Executioner 22901 | -5/Warlord | Destroyed Executioner 22938 | -5/Warlord | Destroyed 10 combat bots 23014 | -5/Warlord | Identified exit to Proximity Caves 23018 | -5/Warlord | Spotted Striker 23019 | -5/Warlord | Entered Proximity Caves 23021 | -4/Proximity Caves | Attracted the attention of an 0b10 checkpoint 23040 | -4/Proximity Caves | Identified Adv. Kinecellerator 23103 | -4/Proximity Caves | Build established: Scavenger-Mutant 23152 | -4/Proximity Caves | Learned 4 Research zone layouts 23173 | -4/Proximity Caves | Discovered exit to Factory (range 10) 23209 | -4/Proximity Caves | Entered Factory 23209 | -4/Factory | Evolved 2 slots: Utility x2 23210 | -4/Factory | Identified exit to Extension 23315 | -4/Factory | Repaired Lrg. Storage Unit 23567 | -4/Factory | Discovered new exit (range 23) 23629 | -4/Factory | Discovered new exit (range 24) 23669 | -4/Factory | Repaired Hvy. Shock Bomb Launcher? 23688 | -4/Factory | Identified exit to Upper Caves 23924 | -4/Factory | Identified exit to Research 24174 | -4/Factory | Discovered exit to Research (range 22) 24354 | -4/Factory | Discovered exit to Extension (range 24) 24541 | -4/Factory | Entered Extension 24844 | -4/Extension | Rescued a captive Derelict 24845 | -4/Extension | Rescued a captive Derelict 24901 | -4/Extension | Rescued a captive Derelict 24902 | -4/Extension | Rescued a captive Derelict 25205 | -4/Extension | Build established: Hauler-Skirmisher 25387 | -4/Extension | Spotted B-86 Titan 25410 | -4/Extension | Spotted B-86 Titan 25411 | -4/Extension | Destroyed B-86 Titan 25480 | -4/Extension | Lost 3 parts (3u) 25647 | -4/Extension | Build established: Hauler-Mutant 26347 | -4/Extension | Destroyed B-86 Titan 26366 | -4/Extension | Disrupted transfer network 26440 | -4/Extension | Discovered exit to Research (range 23) 26600 | -4/Extension | Rescued A7 26938 | -4/Extension | Discovered exit to Research (range 24) 26951 | -4/Extension | Discovered new exit (range 18) 27006 | -4/Extension | Identified exit to Cetus 27008 | -4/Extension | Entered Cetus 27008 | -4/Cetus | Accompanied by 2 allies (A7) 27013 | -4/Cetus | Acquired a Cetus Manufacturing Module code from A7 27036 | -4/Cetus | Spotted Cetus Guard 27036 | -4/Cetus | Spotted Cetus Guard 27038 | -4/Cetus | Spotted Cetus Guard 27042 | -4/Cetus | Destroyed Cetus Guard 27047 | -4/Cetus | Destroyed Cetus Guard 27051 | -4/Cetus | Destroyed Cetus Guard 27051 | -4/Cetus | Spotted Cetus Guard 27057 | -4/Cetus | Allies destroyed Cetus Guard 27204 | -4/Cetus | Started Cetus Manufacturing Module 27229 | -4/Cetus | Manufactured an Enhanced Grunt 27254 | -4/Cetus | Manufactured an Enhanced Grunt 27275 | -4/Cetus | Cetus Manufacturing Module disabled 27320 | -4/Cetus | Escorted A7 to Cetus Mainframe 27378 | -4/Cetus | Discovered new exit (range 15) 27443 | -4/Cetus | Spotted Cetus Guard 27443 | -4/Cetus | Spotted Cetus Guard 27446 | -4/Cetus | Spotted Cetus Guard 27449 | -4/Cetus | Spotted Cetus Guard 27450 | -4/Cetus | Allies destroyed Cetus Guard 27454 | -4/Cetus | Allies destroyed Cetus Guard 27457 | -4/Cetus | Allies destroyed Cetus Guard 27458 | -4/Cetus | Destroyed Cetus Guard 27466 | -4/Cetus | Discovered exit to Research (range 16) 27475 | -4/Cetus | Met Revision 17 27564 | -4/Cetus | Identified exit to Archives 27568 | -4/Cetus | Entered Archives 27568 | -4/Archives | Accompanied by 3 allies (A7) 27573 | -4/Archives | Received a hacking code to weaken MAIN.C 27671 | -4/Archives | Discovered new exit (range 15) 27818 | -4/Archives | Discovered exit to Research (range 14) 28100 | -4/Archives | Identified exit to Hub_04(d) 28102 | -4/Archives | Entered Hub_04(d) 28102 | -4/Hub_04(d) | Accompanied by 2 allies 28107 | -4/Hub_04(d) | Discovered exit to Research (range 16) 28584 | -4/Hub_04(d) | Discovered exit to Research (range 9) 28696 | -4/Hub_04(d) | Discovered exit to Research (range 17) 28843 | -4/Hub_04(d) | Network Hub disabled 28845 | -4/Hub_04(d) | Network Hub disabled 28845 | -4/Hub_04(d) | Spotted Lightning 28851 | -4/Hub_04(d) | Spotted Lightning 28861 | -4/Hub_04(d) | Spotted Lightning 28866 | -4/Hub_04(d) | Spotted Lightning 28871 | -4/Hub_04(d) | Spotted Lightning 28873 | -4/Hub_04(d) | Spotted Lightning 28883 | -4/Hub_04(d) | Spotted Lightning 28883 | -4/Hub_04(d) | Spotted Lightning 28888 | -4/Hub_04(d) | Spotted Lightning 28892 | -4/Hub_04(d) | Spotted Lightning 28896 | -4/Hub_04(d) | Spotted Lightning 28898 | -4/Hub_04(d) | Spotted Lightning 28901 | -4/Hub_04(d) | Network Hub disabled 28906 | -4/Hub_04(d) | System corruption reached 10% 28907 | -4/Hub_04(d) | Disrupted transfer network 28919 | -4/Hub_04(d) | Spotted B-86 Titan 28924 | -4/Hub_04(d) | Core integrity fell below 50% 28924 | -4/Hub_04(d) | System corruption reached 30% 28933 | -4/Hub_04(d) | Core integrity fell below 20% 28933 | -4/Hub_04(d) | Destroyed by Lightning with EMDS Last Messages --------------- 28924_ Penetrated by EMDS Slug. 28925_ Fusion Bomb Launcher destroyed. 28926_ EMDS Slug penetrates Wall. 28927_ Penetrated by EMDS Slug. 28927_ Critical hit. 28927_ Centrium Heavy Treads destroyed. 28927_ Penetrated by EMDS Slug. 28927_ EMDS Slug penetrates Wall. 28928_ B-86 Titan activates siege mode. 28929_ Dropped Hcp. Storage Unit. 28929_ EMDS Slug penetrates Wall. 28929_ Asb. Combat Suite destroyed. 28929_ Dropped Hcp. Storage Unit. 28930_ Dropped Lrg. Storage Unit. 28931_ Surveybot 24 Chip destroyed. 28931_ Dropped Lrg. Storage Unit. 28931_ EMDS Slug penetrates Wall. 28931_ Penetrated by EMDS Slug. 28932_ EMDS Slug penetrates Wall. 28933_ Penetrated by EMDS Slug. Map ----- +----------------------------------------------------+ | ### ? ?? # ?""" # ##########????? | | +? ? # """" # #############?? | | ?# ? # # " " ## ?##? | | ?# # # " " ## ?##? | | ? # # " " ## " ### | | # # #####+#### ## """ ### | | # #? ### #######+### """"" ### | | + + ? ### + """"""" ### | | # # ### < + """"" ### | | #?# ### ##+######## """ ### | | # # #### ## ### " ### | | # ###?######+###### #; ### ### | | # ######## ##### [#; ;## ### | | * % *%;! %* ;############### | | [%= *!#; =%[ ;############### | | ########## #####%##; %[%[= ;############### | | """T"""#### ######;##; *%= ;############### | | # # ; ################ | | ""G"" # ; == ; ################ | | """ " " + # == ; #### # ## | | """ # # = == ; s% / + """" ### ## | | """ ## ##;;;;;;;;% ss #### """" ### ## | | """ !## # ;; ;;;;pp;;s;##### """" ### ## | | ## # ; ; ## # """" ### ## | | ! ## # ; ; ## # ### ## | | ############ # ; @ ; ## #"##+##### ## | | ? ? ???### # ; ! ; ## # ######## | | " " ????? ; ;;;; ![[[!*;;;;;""" # # | | " ??"????T ; !!!/![! ; # # | | "????????? B ; !]!!=!! ; ; # | | ????????? ";;;;; !!!!!! ; ; # | | ???????????# ; ![!!! ; # # | | ???????????### ; !]; ; # | | ????????? ## ;! ; ; " # | | ????????? ## ;;;;;;;;;;;; ; # # | | ??????? #### ; i ; # # | | ??????? ##########;;; ; hh h ; # ! # | | ????? ? ### *! ######h;;; ;"" # # | | ????? + " =!% #### h " # | | ????? ### =% / h """# # | | ????#?##/##### " | #### """######## | | ????# ## #### #" ##### | | o? + ## """ #### ## """## | | ?? # ## #### "## | | ??+## ## #### ! "## | | ? ## ######/########*% "## | | ? ## #### ##### #" #"# ## | | ? ## """" #### [= #"T### ##### | | ? ## """" + ] < = =%* ############### | | ?#### """" #### [!! ############### | +----------------------------------------------------+ Best States ------------- Heat Dissipation 88 Coolant Potential 100 Energy Generation 29 Energy Capacity 1890 Matter Stores 444 Matter Capacity 450 Sight Range 22 Robot Scan Range 30 Terrain Scan Range 24 Terrain Scan Density 2010 Additional Mass Support 20 Armor Coverage 1600 Resistance: KI 30 Resistance: TH 15 Resistance: EX 15 Resistance: EM 90 Resistance: I 15 Resistance: S 15 Resistance: P 15 Utility Shielding 66 Weapon Shielding 100 Phase Shifting 8 Evasion (%) 48 Targeting Accuracy 12 Target Analysis 6 Core Analysis 8 Armor Integrity Analysis 66 Recoil Reduction 3 Particle Charging 25 Kinecelleration 50 Offensive Hacking 11 Defensive Hacking 12 Item Schematics ----------------- Lgt. Angular Momentum Engine | -9/Materials | Scanalyzed Imp. Utility Shielding | -8/Materials | Hacked Hvy. Treads | -7/Factory | Hacked Exp. Sensor Array | -7/Data Miner | Free Exp. Terrain Scanner | -7/Data Miner | Free Exp. Terrain Scan Processor | -7/Data Miner | Free Lgt. Regenerative Plating | -7/Data Miner | Free Cmb. Gravmag System | -7/Data Miner | Free Combat Drone Bay | -7/Data Miner | Free Micro-nuke Launcher | -6/Factory | Scanalyzed Phasing Sabre | -6/Zion | Free Battle Cannon | -6/Zion | Free Battle Rifle | -6/Zion | Free Hvy. Riot Gun | -6/Zion | Free Riot Gun | -6/Zion | Free Exp. Signal Interpreter | -5/Factory | Hacked Adv. Hacking Suite | -4/Factory | Hacked Quantum Capacitor | -4/Extension | Hacked Com. HERF Cannon | -4/Hub_04(d) | Hacked Robot Schematics ------------------ I-47 Archangel | -7/Data Miner | Free I-36 Angel | -7/Data Miner | Free P-70 Sage | -7/Data Miner | Free X-72 Disruptor | -7/Data Miner | Free G-67 Veteran | -7/Data Miner | Free G-50 Soldier | -7/Data Miner | Free S-27 Virus | -7/Data Miner | Free Fabricated ------------ Imp. Utility Shielding | x2 | -7/Factory Exp. Sensor Array | x1 | -6/Factory I-47 Archangel | x1 | -5/Factory Exp. Signal Interpreter | x1 | -5/Factory Alien Tech Used ----------------- Core Expander Achievements -------------- None Challenges ------------ None Game ------ Seed XenonUltimateGun Manual? 0 Play Time 06:03:18 Cumulative 233.5 hours Start 2020.09.16 @ 23:22:54 End 2020.09.18 @ 21:37:51 Sessions 23 Manual Loads 0 Difficulty Rogue Special Mode None Game No. 125 Rogue 125 Adventurer 0 Explorer 0 Win Type - Total 9 Types 7/0/1/1/0/0/0/0/0 Lore% 64 Gallery% 81 Achievement% 64 Wizard Run 0 Options --------- ASCII 0 Keyboard 0 Movement Mouse Keybinds 0 Fullscreen 1 Font 24/Smallcaps Map View 76x50 Tactical HUD 1 Map Filters NONE Filters NONE Steam 1 RUN: ba754daa-cd09-46e1-9836-5bb6a4ecd6e2